[Event "Schack-SM 2023: Mastarklassen"]
[Site "Helsingborg Arena, Mellersta Stenbocksgatan 14, Helsingborg, Sweden"]
[Date "2023.07.04"]
[Round "4.7"]
[White "Mashhadi, Peyman"]
[Black "Muntean, Victor"]
[Result "0-1"]
[TimeControl "90 minutes for 40 moves + 30 minutes for the rest of games + 30 seconds per move from move one."]
[WhiteElo "2117"]
[BlackElo "2097"]

1. e4 {[%clk 01:30:52]} {[%emt 00:00:07]} e5 {[%clk 01:30:56]} {[%emt
00:00:04]} 2. Nf3 {[%clk 01:31:10]} {[%emt 00:00:11]} Nc6 {[%clk 01:31:21]}
{[%emt 00:00:07]} 3. Bb5 {[%clk 01:31:09]} {[%emt 00:00:31]} a6 {[%clk
01:31:45]} {[%emt 00:00:07]} 4. Ba4 {[%clk 01:31:28]} {[%emt 00:00:09]} f5
{[%clk 01:31:45]} {[%emt 00:00:31]} 5. d3 {[%clk 01:30:59]} {[%emt 00:00:58]}
fxe4 {[%clk 01:30:09]} {[%emt 00:02:06]} 6. dxe4 {[%clk 01:30:34]} {[%emt
00:00:56]} Nf6 {[%clk 01:29:10]} {[%emt 00:01:28]} 7. O-O {[%clk 01:29:35]}
{[%emt 00:01:28]} d6 {[%clk 01:27:57]} {[%emt 00:01:45]} 8. Re1 {[%clk
01:14:16]} {[%emt 00:15:48]} Be6 {[%clk 01:22:35]} {[%emt 00:05:52]} 9. Ng5
{[%clk 01:08:37]} {[%emt 00:06:09]} Bg8 {[%clk 01:19:01]} {[%emt 00:04:04]} 10.
f4 {[%clk 00:59:31]} {[%emt 00:09:36]} Qd7 {[%clk 01:09:26]} {[%emt 00:10:05]}
11. c3 {[%clk 00:50:16]} {[%emt 00:09:44]} O-O-O {[%clk 01:05:06]} {[%emt
00:04:49]} 12. b4 {[%clk 00:48:05]} {[%emt 00:02:43]} exf4 {[%clk 01:01:09]}
{[%emt 00:04:27]} 13. Bxf4 {[%clk 00:43:29]} {[%emt 00:05:05]} h6 {[%clk
00:58:15]} {[%emt 00:03:25]} 14. Nf3 {[%clk 00:41:34]} {[%emt 00:02:25]} g5
{[%clk 00:56:53]} {[%emt 00:01:53]} 15. Bg3 {[%clk 00:40:13]} {[%emt 00:01:51]}
Re8 {[%clk 00:52:07]} {[%emt 00:05:17]} 16. b5 {[%clk 00:35:10]} {[%emt
00:05:31]} axb5 {[%clk 00:49:08]} {[%emt 00:03:29]} 17. Bxb5 {[%clk 00:35:29]}
{[%emt 00:00:12]} Rxe4 {[%clk 00:47:40]} {[%emt 00:01:57]} 18. Rxe4 {[%clk
00:30:42]} {[%emt 00:05:17]} Nxe4 {[%clk 00:48:05]} {[%emt 00:00:05]} 19. Qa4
{[%clk 00:30:30]} {[%emt 00:00:42]} Qf5 {[%clk 00:45:01]} {[%emt 00:03:34]} 20.
Bxc6 {[%clk 00:29:24]} {[%emt 00:01:35]} bxc6 {[%clk 00:45:19]} {[%emt
00:00:13]} 21. Nd4 {[%clk 00:27:15]} {[%emt 00:02:40]} Qg4 {[%clk 00:36:07]}
{[%emt 00:09:41]} 22. Qa8+ {[%clk 00:24:35]} {[%emt 00:03:10]} Kd7 {[%clk
00:36:25]} {[%emt 00:00:12]} 23. Qxf8 {[%clk 00:20:39]} {[%emt 00:04:25]} Qd1+
{[%clk 00:33:39]} {[%emt 00:03:17]} 24. Qf1 {[%clk 00:21:03]} {[%emt 00:00:05]}
Qxf1+ {[%clk 00:34:01]} {[%emt 00:00:09]} 25. Kxf1 {[%clk 00:21:29]} {[%emt
00:00:03]} Bc4+ {[%clk 00:34:25]} {[%emt 00:00:08]} 26. Ke1 {[%clk 00:20:08]}
{[%emt 00:01:50]} Re8 {[%clk 00:34:18]} {[%emt 00:00:37]} 27. Kd1 {[%clk
00:20:17]} {[%emt 00:00:20]} Nxg3 {[%clk 00:32:57]} {[%emt 00:01:52]} 28. hxg3
{[%clk 00:20:29]} {[%emt 00:00:18]} c5 {[%clk 00:33:21]} {[%emt 00:00:06]} 29.
Nc2 {[%clk 00:17:05]} {[%emt 00:03:55]} Re2 {[%clk 00:32:23]} {[%emt 00:01:28]}
30. Nd2 {[%clk 00:17:23]} {[%emt 00:00:11]} Ba6 {[%clk 00:30:51]} {[%emt
00:02:02]} 31. Ne1 {[%clk 00:15:31]} {[%emt 00:02:22]} Re3 {[%clk 00:28:46]}
{[%emt 00:02:36]} 32. Kc2 {[%clk 00:10:12]} {[%emt 00:05:48]} Rxg3 {[%clk
00:28:38]} {[%emt 00:00:38]} 33. Nef3 {[%clk 00:09:48]} {[%emt 00:00:54]} Rxg2
{[%clk 00:27:34]} {[%emt 00:01:34]} 34. Rh1 {[%clk 00:10:11]} {[%emt 00:00:07]}
Bb7 {[%clk 00:27:04]} {[%emt 00:01:00]} 35. Rf1 {[%clk 00:08:50]} {[%emt
00:01:51]} h5 {[%clk 00:22:57]} {[%emt 00:04:38]} 36. Ne1 {[%clk 00:07:19]}
{[%emt 00:02:01]} Rg3 {[%clk 00:22:02]} {[%emt 00:01:24]} 37. Rf7+ {[%clk
00:07:31]} {[%emt 00:00:18]} Kd8 {[%clk 00:20:26]} {[%emt 00:02:06]} 38. Ndf3
{[%clk 00:04:54]} {[%emt 00:03:06]} Bd5 {[%clk 00:15:52]} {[%emt 00:05:04]} 39.
Rg7 {[%clk 00:02:44]} {[%emt 00:02:41]} Bxf3 {[%clk 00:16:09]} {[%emt
00:00:13]} 40. Nxf3 {[%clk 00:03:10]} {[%emt 00:00:04]} Rxf3 {[%clk 00:16:34]}
{[%emt 00:00:06]} 41. Rxg5 {[%clk 00:03:37]} {[%emt 00:00:03]} h4 {[%clk
00:16:12]} {[%emt 00:00:51]} 42. Rh5 {[%clk 00:03:57]} {[%emt 00:00:10]} Rh3
{[%clk 00:16:36]} {[%emt 00:00:06]} 43. Rh7 {[%clk 00:02:46]} {[%emt 00:01:41]}
Kc8 {[%clk 00:15:49]} {[%emt 00:01:17]} 44. Rg7 {[%clk 00:27:37]} {[%emt
00:05:38]} Rh1 {[%clk 00:45:21]} {[%emt 00:00:59]} 45. Rh7 {[%clk 00:23:45]}
{[%emt 00:04:22]} h3 {[%clk 00:43:24]} {[%emt 00:02:27]} 46. c4 {[%clk
00:23:55]} {[%emt 00:00:20]} h2 {[%clk 00:41:12]} {[%emt 00:02:42]} 47. Kb2
{[%clk 00:24:05]} {[%emt 00:00:20]} d5 {[%clk 00:41:05]} {[%emt 00:00:38]} 48.
Ka3 {[%clk 00:21:28]} {[%emt 00:03:06]} dxc4 {[%clk 00:40:35]} {[%emt
00:00:59]} 49. Ka4 {[%clk 00:21:52]} {[%emt 00:00:07]} c3 {[%clk 00:40:15]}
{[%emt 00:00:50]} 50. Kb5 {[%clk 00:22:05]} {[%emt 00:00:17]} Rb1+ {[%clk
00:40:30]} {[%emt 00:00:15]} 0-1

[Event "Schack-SM 2023: Junior-SM"]
[Site "Helsingborg Arena, Mellersta Stenbocksgatan 14, Helsingborg, Sweden"]
[Date "2023.07.04"]
[Round "4.1"]
[White "Falkevall, Axel"]
[Black "Persson, Sebastian 2007"]
[Result "1/2-1/2"]
[TimeControl "90 minutes for 40 moves + 30 minutes for the rest of the game + 30 seconds per move from move one."]
[WhiteTitle "FM"]
[WhiteElo "2311"]
[BlackElo "1947"]

1. e4 {[%clk 01:30:56]} {[%emt 00:00:03]} d6 {[%clk 01:31:23]} {[%emt
00:00:07]} 2. d4 {[%clk 01:31:13]} {[%emt 00:00:14]} Nf6 {[%clk 01:31:45]}
{[%emt 00:00:07]} 3. Nc3 {[%clk 01:31:38]} {[%emt 00:00:05]} g6 {[%clk
01:32:09]} {[%emt 00:00:06]} 4. h3 {[%clk 01:31:07]} {[%emt 00:01:00]} c6
{[%clk 01:32:14]} {[%emt 00:00:25]} 5. f4 {[%clk 01:28:30]} {[%emt 00:03:06]}
Nh5 {[%clk 01:32:32]} {[%emt 00:00:13]} 6. Nf3 {[%clk 01:22:16]} {[%emt
00:06:44]} Ng3 {[%clk 01:29:18]} {[%emt 00:03:44]} 7. Rg1 {[%clk 01:22:01]}
{[%emt 00:00:45]} Nxf1 {[%clk 01:29:34]} {[%emt 00:00:15]} 8. Rxf1 {[%clk
01:22:20]} {[%emt 00:00:11]} Bg7 {[%clk 01:29:12]} {[%emt 00:00:51]} 9. Be3
{[%clk 01:20:55]} {[%emt 00:01:55]} b5 {[%clk 01:25:31]} {[%emt 00:04:12]} 10.
Kf2 {[%clk 01:16:40]} {[%emt 00:04:46]} O-O {[%clk 01:19:33]} {[%emt 00:06:27]}
11. Kg1 {[%clk 01:16:18]} {[%emt 00:00:51]} Nd7 {[%clk 01:19:04]} {[%emt
00:01:00]} 12. Qd2 {[%clk 01:12:39]} {[%emt 00:04:09]} Nf6 {[%clk 01:12:48]}
{[%emt 00:06:46]} 13. a3 {[%clk 01:08:55]} {[%emt 00:04:14]} a5 {[%clk
01:08:46]} {[%emt 00:04:32]} 14. e5 {[%clk 00:58:31]} {[%emt 00:10:54]} Nd5
{[%clk 01:09:02]} {[%emt 00:00:13]} 15. Nxd5 {[%clk 00:58:27]} {[%emt
00:00:35]} cxd5 {[%clk 01:09:23]} {[%emt 00:00:08]} 16. Kh2 {[%clk 00:56:56]}
{[%emt 00:02:01]} Bf5 {[%clk 01:03:26]} {[%emt 00:06:27]} 17. g4 {[%clk
00:52:02]} {[%emt 00:05:25]} Be4 {[%clk 01:03:46]} {[%emt 00:00:10]} 18. Ng5
{[%clk 00:51:22]} {[%emt 00:01:10]} Qc8 {[%clk 00:44:58]} {[%emt 00:19:19]} 19.
Rf2 {[%clk 00:46:16]} {[%emt 00:05:36]} f5 {[%clk 00:38:12]} {[%emt 00:07:15]}
20. Rg1 {[%clk 00:41:33]} {[%emt 00:05:13]} Bh6 {[%clk 00:33:07]} {[%emt
00:05:36]} 1/2-1/2

[Event "Schack-SM 2023: Mastarklassen"]
[Site "Helsingborg Arena, Mellersta Stenbocksgatan 14, Helsingborg, Sweden"]
[Date "2023.07.04"]
[Round "4.8"]
[White "Nylen, Anders"]
[Black "Troberg Eskola, Love"]
[Result "1/2-1/2"]
[TimeControl "90 minutes for 40 moves + 30 minutes for the rest of games + 30 seconds per move from move one."]
[WhiteElo "2094"]
[BlackElo "2038"]

1. d4 {[%clk 01:16:46]} {[%emt 00:14:13]} d6 {[%clk 01:30:54]} {[%emt
00:00:07]} 2. e4 {[%clk 01:16:59]} {[%emt 00:00:17]} Nf6 {[%clk 01:31:17]}
{[%emt 00:00:06]} 3. f3 {[%clk 01:17:19]} {[%emt 00:00:10]} e5 {[%clk
01:31:35]} {[%emt 00:00:13]} 4. d5 {[%clk 01:17:14]} {[%emt 00:00:35]} g6
{[%clk 01:30:57]} {[%emt 00:01:08]} 5. c4 {[%clk 01:15:56]} {[%emt 00:01:48]}
Bg7 {[%clk 01:27:27]} {[%emt 00:03:59]} 6. Nc3 {[%clk 01:15:41]} {[%emt
00:00:46]} a5 {[%clk 01:25:33]} {[%emt 00:02:25]} 7. Bg5 {[%clk 01:15:36]}
{[%emt 00:00:34]} Na6 {[%clk 01:22:31]} {[%emt 00:03:31]} 8. Qd2 {[%clk
01:12:14]} {[%emt 00:03:53]} c6 {[%clk 01:18:08]} {[%emt 00:04:52]} 9. Bd3
{[%clk 01:10:09]} {[%emt 00:02:35]} Nc5 {[%clk 01:16:20]} {[%emt 00:02:19]} 10.
Nge2 {[%clk 01:08:22]} {[%emt 00:02:16]} h6 {[%clk 01:04:09]} {[%emt 00:12:41]}
11. Be3 {[%clk 01:07:58]} {[%emt 00:00:55]} cxd5 {[%clk 01:03:18]} {[%emt
00:01:22]} 12. cxd5 {[%clk 01:08:14]} {[%emt 00:00:13]} Nxd3+ {[%clk 00:57:14]}
{[%emt 00:06:33]} 13. Qxd3 {[%clk 01:08:39]} {[%emt 00:00:05]} O-O {[%clk
00:57:27]} {[%emt 00:00:18]} 14. O-O {[%clk 01:08:40]} {[%emt 00:00:29]} Nd7
{[%clk 00:44:54]} {[%emt 00:13:02]} 15. Nc1 {[%clk 00:59:33]} {[%emt 00:09:37]}
f5 {[%clk 00:40:37]} {[%emt 00:04:47]} 16. Qd2 {[%clk 00:56:29]} {[%emt
00:03:34]} f4 {[%clk 00:33:59]} {[%emt 00:07:10]} 17. Bf2 {[%clk 00:56:50]}
{[%emt 00:00:07]} h5 {[%clk 00:31:39]} {[%emt 00:02:50]} 18. Nd3 {[%clk
00:55:21]} {[%emt 00:01:59]} g5 {[%clk 00:31:29]} {[%emt 00:00:40]} 19. Nb5
{[%clk 00:54:17]} {[%emt 00:01:33]} Nf6 {[%clk 00:27:06]} {[%emt 00:04:54]} 20.
Qc3 {[%clk 00:52:58]} {[%emt 00:01:49]} Ne8 {[%clk 00:24:53]} {[%emt 00:02:43]}
21. Rfc1 {[%clk 00:50:38]} {[%emt 00:02:50]} Rf7 {[%clk 00:24:51]} {[%emt
00:00:33]} 22. Rc2 {[%clk 00:47:36]} {[%emt 00:03:31]} g4 {[%clk 00:24:55]}
{[%emt 00:00:26]} 23. Kf1 {[%clk 00:39:44]} {[%emt 00:08:22]} h4 {[%clk
00:21:09]} {[%emt 00:04:16]} 24. Bg1 {[%clk 00:35:15]} {[%emt 00:04:58]} h3
{[%clk 00:20:29]} {[%emt 00:01:10]} 25. gxh3 {[%clk 00:33:07]} {[%emt
00:02:38]} gxf3 {[%clk 00:19:44]} {[%emt 00:01:16]} 26. Nf2 {[%clk 00:32:29]}
{[%emt 00:01:07]} Bd7 {[%clk 00:15:15]} {[%emt 00:05:00]} 27. Na3 {[%clk
00:28:45]} {[%emt 00:04:14]} Rc8 {[%clk 00:13:59]} {[%emt 00:01:46]} 28. Qxf3
{[%clk 00:28:39]} {[%emt 00:00:35]} Bb5+ {[%clk 00:12:46]} {[%emt 00:01:43]} 29.
Kg2 {[%clk 00:28:41]} {[%emt 00:00:28]} Rxc2 {[%clk 00:11:38]} {[%emt
00:01:39]} 30. Nxc2 {[%clk 00:29:08]} {[%emt 00:00:02]} Be2 {[%clk 00:10:32]}
{[%emt 00:01:36]} 31. Qxe2 {[%clk 00:24:14]} {[%emt 00:05:24]} f3+ {[%clk
00:10:56]} {[%emt 00:00:06]} 32. Qxf3 {[%clk 00:24:43]} {[%emt 00:00:02]} Rxf3
{[%clk 00:11:18]} {[%emt 00:00:07]} 33. Kxf3 {[%clk 00:25:10]} {[%emt
00:00:04]} Qb6 {[%clk 00:07:40]} {[%emt 00:04:08]} 34. Nd3 {[%clk 00:24:01]}
{[%emt 00:01:39]} Qb5 {[%clk 00:07:33]} {[%emt 00:00:37]} 35. Nce1 {[%clk
00:22:26]} {[%emt 00:02:04]} Nf6 {[%clk 00:07:14]} {[%emt 00:00:49]} 36. Be3
{[%clk 00:20:46]} {[%emt 00:02:10]} Qc4 {[%clk 00:05:29]} {[%emt 00:02:15]} 37.
Nf2 {[%clk 00:20:44]} {[%emt 00:00:33]} a4 {[%clk 00:04:32]} {[%emt 00:01:27]}
38. a3 {[%clk 00:20:03]} {[%emt 00:01:10]} Qb3 {[%clk 00:03:33]} {[%emt
00:01:29]} 39. Ned3 {[%clk 00:18:59]} {[%emt 00:01:35]} Nxd5 {[%clk 00:02:03]}
{[%emt 00:01:59]} 40. exd5 {[%clk 00:17:14]} {[%emt 00:02:15]} Qxd5+ {[%clk
00:02:27]} {[%emt 00:00:06]} 41. Kg4 {[%clk 00:09:59]} {[%emt 00:07:46]} Qg2+
{[%clk 00:01:28]} {[%emt 00:01:29]} 42. Kh5 {[%clk 00:08:21]} {[%emt 00:02:07]}
Qf3+ {[%clk 00:24:43]} {[%emt 00:07:15]} 43. Ng4 {[%clk 00:37:52]} {[%emt
00:00:59]} Qf5+ {[%clk 00:24:34]} {[%emt 00:00:39]} 44. Kh4 {[%clk 00:35:00]}
{[%emt 00:03:23]} Qxd3 {[%clk 00:24:53]} {[%emt 00:00:11]} 45. Rc1 {[%clk
00:35:03]} {[%emt 00:00:25]} Qf5 {[%clk 00:19:03]} {[%emt 00:06:21]} 46. Rc7
{[%clk 00:34:00]} {[%emt 00:01:34]} b5 {[%clk 00:18:21]} {[%emt 00:01:13]} 47.
Nh6+ {[%clk 00:30:08]} {[%emt 00:04:21]} Bxh6 {[%clk 00:18:44]} {[%emt
00:00:07]} 48. Bxh6 {[%clk 00:30:37]} {[%emt 00:00:01]} e4 {[%clk 00:16:37]}
{[%emt 00:02:38]} 49. Rg7+ {[%clk 00:27:54]} {[%emt 00:03:12]} Kh8 {[%clk
00:16:56]} {[%emt 00:00:12]} 50. Re7 {[%clk 00:27:45]} {[%emt 00:00:38]} d5
{[%clk 00:16:34]} {[%emt 00:00:53]} 51. Bg7+ {[%clk 00:18:47]} {[%emt
00:09:28]} Kg8 {[%clk 00:16:55]} {[%emt 00:00:09]} 52. Bd4 {[%clk 00:19:00]}
{[%emt 00:00:16]} Kf8 {[%clk 00:13:32]} {[%emt 00:03:54]} 53. Re5 {[%clk
00:18:01]} {[%emt 00:01:29]} Qf4+ {[%clk 00:13:45]} {[%emt 00:00:16]} 54. Kh5
{[%clk 00:18:03]} {[%emt 00:00:27]} Qxh2 {[%clk 00:08:56]} {[%emt 00:05:20]} 55.
Kg6 {[%clk 00:16:09]} {[%emt 00:02:23]} Qg3+ {[%clk 00:08:31]} {[%emt
00:00:55]} 56. Kf6 {[%clk 00:15:25]} {[%emt 00:01:13]} Qxh3 {[%clk 00:05:10]}
{[%emt 00:03:53]} 57. Rxd5 {[%clk 00:13:02]} {[%emt 00:02:53]} Qf3+ {[%clk
00:03:48]} {[%emt 00:01:51]} 58. Ke6 {[%clk 00:11:50]} {[%emt 00:01:40]} Qb3
{[%clk 00:04:04]} {[%emt 00:00:17]} 59. Kd6 {[%clk 00:10:42]} {[%emt 00:01:38]}
e3 {[%clk 00:03:42]} {[%emt 00:00:53]} 60. Bc3 {[%clk 00:08:39]} {[%emt
00:02:32]} e2 {[%clk 00:03:53]} {[%emt 00:00:21]} 61. Rf5+ {[%clk 00:08:21]}
{[%emt 00:00:44]} Kg8 {[%clk 00:04:01]} {[%emt 00:00:26]} 62. Re5 {[%clk
00:07:28]} {[%emt 00:01:22]} Qc4 {[%clk 00:03:31]} {[%emt 00:01:00]} 63. Ke7
{[%clk 00:06:30]} {[%emt 00:01:26]} Kh7 {[%clk 00:03:02]} {[%emt 00:01:01]} 64.
Kf6 {[%clk 00:06:40]} {[%emt 00:00:20]} Qf4+ {[%clk 00:02:46]} {[%emt
00:00:46]} 65. Ke6 {[%clk 00:06:55]} {[%emt 00:00:13]} Kg6 {[%clk 00:02:57]}
{[%emt 00:00:21]} 66. Kd5 {[%clk 00:06:48]} {[%emt 00:00:37]} Kf7 {[%clk
00:02:49]} {[%emt 00:00:38]} 67. Re4 {[%clk 00:06:40]} {[%emt 00:00:37]} Qf3
{[%clk 00:02:28]} {[%emt 00:00:52]} 68. Kd4 {[%clk 00:06:47]} {[%emt 00:00:23]}
Kf6 {[%clk 00:02:08]} {[%emt 00:00:51]} 69. Re3 {[%clk 00:05:44]} {[%emt
00:01:32]} Qf1 {[%clk 00:01:05]} {[%emt 00:01:33]} 70. Kd3+ {[%clk 00:05:22]}
{[%emt 00:00:52]} Kf5 {[%clk 00:01:24]} {[%emt 00:00:11]} 71. Rxe2 {[%clk
00:05:40]} {[%emt 00:00:12]} Kf4 {[%clk 00:01:18]} {[%emt 00:00:36]} 72. Kd2
{[%clk 00:05:45]} {[%emt 00:00:23]} Kf3 {[%clk 00:01:25]} {[%emt 00:00:25]} 73.
Re5 {[%clk 00:05:53]} {[%emt 00:00:23]} Qc4 {[%clk 00:01:41]} {[%emt 00:00:13]}
74. Re3+ {[%clk 00:05:25]} {[%emt 00:00:58]} Kf2 {[%clk 00:01:32]} {[%emt
00:00:39]} 75. Re5 {[%clk 00:04:50]} {[%emt 00:01:05]} Qb3 {[%clk 00:01:03]}
{[%emt 00:00:59]} 76. Re4 {[%clk 00:04:12]} {[%emt 00:01:05]} Kf3 {[%clk
00:01:01]} {[%emt 00:00:34]} 77. Rd4 {[%clk 00:04:20]} {[%emt 00:00:22]} Qe6
{[%clk 00:00:57]} {[%emt 00:00:34]} 78. Kc2 {[%clk 00:04:01]} {[%emt 00:00:48]}
Qg6+ {[%clk 00:01:00]} {[%emt 00:00:28]} 79. Kc1 {[%clk 00:04:04]} {[%emt
00:00:27]} Ke2 {[%clk 00:01:01]} {[%emt 00:00:30]} 80. Rd2+ {[%clk 00:03:54]}
{[%emt 00:00:39]} Ke3 {[%clk 00:01:26]} {[%emt 00:00:07]} 81. Rd4 {[%clk
00:03:59]} {[%emt 00:00:24]} Qg1+ {[%clk 00:01:37]} {[%emt 00:00:19]} 82. Kc2
{[%clk 00:04:12]} {[%emt 00:00:17]} Qg2+ {[%clk 00:01:56]} {[%emt 00:00:10]} 83.
Rd2 {[%clk 00:04:30]} {[%emt 00:00:13]} Qe4+ {[%clk 00:02:20]} {[%emt
00:00:06]} 84. Kc1 {[%clk 00:04:44]} {[%emt 00:00:16]} Qh1+ {[%clk 00:02:29]}
{[%emt 00:00:21]} 85. Rd1 {[%clk 00:04:26]} {[%emt 00:00:48]} Qh7 {[%clk
00:02:44]} {[%emt 00:00:15]} 86. Rd2 {[%clk 00:04:36]} {[%emt 00:00:21]} Qg6
{[%clk 00:02:01]} {[%emt 00:01:12]} 87. Rd1 {[%clk 00:04:57]} {[%emt 00:00:08]}
Qf5 {[%clk 00:01:51]} {[%emt 00:00:41]} 88. Rd2 {[%clk 00:05:12]} {[%emt
00:00:14]} Qf4 {[%clk 00:01:04]} {[%emt 00:01:17]} 89. Rd1 {[%clk 00:04:53]}
{[%emt 00:00:50]} Ke2+ {[%clk 00:01:19]} {[%emt 00:00:16]} 90. Rd2+ {[%clk
00:05:19]} {[%emt 00:00:03]} Ke1 {[%clk 00:01:24]} {[%emt 00:00:25]} 91. Kc2
{[%clk 00:05:14]} {[%emt 00:00:36]} Qf5+ {[%clk 00:01:32]} {[%emt 00:00:22]} 92.
Kc1 {[%clk 00:05:32]} {[%emt 00:00:11]} Qf4 {[%clk 00:00:48]} {[%emt 00:01:13]}
93. Kc2 {[%clk 00:05:54]} {[%emt 00:00:09]} Qe4+ {[%clk 00:01:02]} {[%emt
00:00:16]} 94. Kc1 {[%clk 00:06:12]} {[%emt 00:00:12]} Qe3 {[%clk 00:01:01]}
{[%emt 00:00:30]} 95. Kc2 {[%clk 00:06:29]} {[%emt 00:00:14]} Qe4+ {[%clk
00:00:35]} {[%emt 00:00:56]} 96. Kc1 {[%clk 00:06:58]} {[%emt 00:00:01]} Qe3
{[%clk 00:00:37]} {[%emt 00:00:28]} 1/2-1/2

[Event "Schack-SM 2023: Junior-SM"]
[Site "Helsingborg Arena, Mellersta Stenbocksgatan 14, Helsingborg, Sweden"]
[Date "2023.07.04"]
[Round "4.2"]
[White "Dingertz, Erik"]
[Black "Wernberg, Hugo"]
[Result "1-0"]
[TimeControl "90 minutes for 40 moves + 30 minutes for the rest of the game + 30 seconds per move from move one."]
[BlackTitle "FM"]
[WhiteElo "2090"]
[BlackElo "2217"]

1. c4 {[%clk 01:30:57]} {[%emt 00:00:02]} e5 {[%clk 01:30:53]} {[%emt
00:00:08]} 2. g3 {[%clk 01:31:22]} {[%emt 00:00:06]} Nc6 {[%clk 01:31:17]}
{[%emt 00:00:06]} 3. Bg2 {[%clk 01:31:46]} {[%emt 00:00:06]} g6 {[%clk
01:31:32]} {[%emt 00:00:14]} 4. Nc3 {[%clk 01:32:11]} {[%emt 00:00:05]} Bg7
{[%clk 01:31:54]} {[%emt 00:00:08]} 5. d3 {[%clk 01:32:24]} {[%emt 00:00:17]}
d6 {[%clk 01:32:05]} {[%emt 00:00:20]} 6. Rb1 {[%clk 01:32:45]} {[%emt
00:00:09]} a5 {[%clk 01:30:57]} {[%emt 00:01:38]} 7. a3 {[%clk 01:33:06]}
{[%emt 00:00:10]} Nge7 {[%clk 01:28:38]} {[%emt 00:02:48]} 8. b4 {[%clk
01:32:25]} {[%emt 00:01:10]} axb4 {[%clk 01:26:46]} {[%emt 00:02:22]} 9. axb4
{[%clk 01:32:48]} {[%emt 00:00:08]} Nd4 {[%clk 01:24:15]} {[%emt 00:03:00]} 10.
e3 {[%clk 01:29:01]} {[%emt 00:04:18]} Ndf5 {[%clk 01:18:06]} {[%emt 00:06:38]}
11. Nf3 {[%clk 01:18:24]} {[%emt 00:11:08]} O-O {[%clk 01:10:04]} {[%emt
00:08:32]} 12. O-O {[%clk 01:17:55]} {[%emt 00:00:59]} c6 {[%clk 01:08:15]}
{[%emt 00:02:19]} 13. d4 {[%clk 01:15:40]} {[%emt 00:02:46]} exd4 {[%clk
00:54:12]} {[%emt 00:14:33]} 14. exd4 {[%clk 01:15:22]} {[%emt 00:00:48]} c5
{[%clk 00:53:47]} {[%emt 00:00:54]} 15. Nb5 {[%clk 01:15:19]} {[%emt 00:00:33]}
cxb4 {[%clk 00:48:05]} {[%emt 00:06:13]} 16. Bf4 {[%clk 01:09:50]} {[%emt
00:05:59]} d5 {[%clk 00:42:17]} {[%emt 00:06:17]} 17. g4 {[%clk 00:56:38]}
{[%emt 00:13:42]} Nh6 {[%clk 00:37:07]} {[%emt 00:05:39]} 18. h3 {[%clk
00:57:06]} {[%emt 00:00:04]} f5 {[%clk 00:30:24]} {[%emt 00:07:13]} 19. g5
{[%clk 00:57:01]} {[%emt 00:00:34]} Nf7 {[%clk 00:30:27]} {[%emt 00:00:27]} 20.
Qb3 {[%clk 00:55:33]} {[%emt 00:01:59]} dxc4 {[%clk 00:25:46]} {[%emt
00:05:11]} 21. Qxc4 {[%clk 00:53:31]} {[%emt 00:02:32]} Nd5 {[%clk 00:14:32]}
{[%emt 00:11:44]} 22. Bc7 {[%clk 00:40:15]} {[%emt 00:13:45]} Nxc7 {[%clk
00:12:42]} {[%emt 00:02:21]} 23. Nxc7 {[%clk 00:40:42]} {[%emt 00:00:03]} Rb8
{[%clk 00:09:45]} {[%emt 00:03:26]} 24. Ne5 {[%clk 00:24:53]} {[%emt 00:16:19]}
Bxe5 {[%clk 00:06:45]} {[%emt 00:03:31]} 25. dxe5 {[%clk 00:25:19]} {[%emt
00:00:04]} Qxg5 {[%clk 00:06:02]} {[%emt 00:01:12]} 26. f4 {[%clk 00:21:44]}
{[%emt 00:04:05]} Qe7 {[%clk 00:05:50]} {[%emt 00:00:41]} 27. Nd5 {[%clk
00:20:03]} {[%emt 00:02:12]} Qe6 {[%clk 00:05:46]} {[%emt 00:00:35]} 28. Qc7
{[%clk 00:19:01]} {[%emt 00:01:32]} Ra8 {[%clk 00:04:15]} {[%emt 00:02:00]} 29.
Nf6+ {[%clk 00:18:42]} {[%emt 00:00:48]} Kg7 {[%clk 00:03:42]} {[%emt
00:01:04]} 30. Bd5 {[%clk 00:19:06]} {[%emt 00:00:06]} Qa6 {[%clk 00:03:36]}
{[%emt 00:00:37]} 31. Ne8+ {[%clk 00:19:27]} {[%emt 00:00:09]} Kh8 {[%clk
00:03:06]} {[%emt 00:01:00]} 32. Qe7 {[%clk 00:18:15]} {[%emt 00:01:41]} 1-0